fUSD/lending_fUSD_20240218
["ID","MTS","AMOUNT","RATE_DAILY","PERIOD"]
[314356758,1708224638594,-12778.0,0.000374,2]
[314356759,1708224638603,-1223.48685615,0.000375,2]
[314357238,1708224643386,-776.51314385,0.000375,2]
[314357240,1708224643395,-150.0,0.00037549,2]
[314357242,1708224643407,-166.65,0.00037916,2]
[314357244,1708224643417,-731.68229924,0.00037981,5]
[314357246,1708224643426,-155.0,0.00037982,4]
[314357248,1708224643436,-3000.0,0.00037982,2]
[314357250,1708224643446,-300.0,0.00038,39]
[314357252,1708224643455,-166.92532278,0.00038,4]
[314357254,1708224643464,-888.0,0.00038,2]
[314357257,1708224643474,-4000.0,0.00038,2]
[314357259,1708224643489,-316.4924,0.00038035,2]
[314357261,1708224643499,-251.1179,0.00038035,2]
[314357263,1708224643508,-1866.0,0.00038135,2]
[314357265,1708224643518,-1370.0,0.00038135,2]
[314357267,1708224643527,-2691.0,0.00038135,2]
[314357269,1708224643538,-709.0,0.00038135,2]
[314357271,1708224643547,-200.861,0.00038135,2]
[314357273,1708224643557,-953.0,0.00038135,2]
[314357276,1708224643567,-842.0,0.00038135,2]
[314357278,1708224643576,-216.0,0.00038135,2]
[314357280,1708224643586,-450.52824795,0.00038135,2]
[314357392,1708224646397,-0.94175205,0.00038135,2]
[314357393,1708224646407,-1950.0,0.00038135,2]
[314357394,1708224646416,-1231.0,0.00038135,2]
[314357395,1708224646426,-1255.0,0.00038135,2]
[314357396,1708224646434,-276.0,0.00038135,2]
[314357397,1708224646443,-429.0,0.00038135,2]
[314357398,1708224646452,-858.0,0.00038135,2]
[314357399,1708224646461,-1005.0,0.00038135,2]
[314357400,1708224646471,-2872.0,0.00038135,2]
[314357401,1708224646479,-1138.0,0.00038135,2]
[314357402,1708224646489,-150.0,0.00038135,2]
[314357403,1708224646498,-321.0,0.00038135,2]
[314357404,1708224646507,-343.0,0.00038135,2]
[314357405,1708224646516,-389.0,0.00038135,2]
[314357406,1708224646525,-2404.0,0.00038135,2]
[314357407,1708224646535,-454.0,0.00038135,2]
[314357408,1708224646544,-2929.0,0.00038135,2]
[314357409,1708224646554,-7326.01751599,0.00038135,2]
[314357410,1708224646570,-842.98248401,0.00038135,2]
[314357411,1708224646579,-7422.0,0.00038135,2]
[314357412,1708224646588,-12644.56127719,0.00038135,2]
[314357413,1708224646609,-13580.13472281,0.00038135,2]
[314357414,1708224646618,-4100.0,0.00038135,2]
[314357415,1708224646628,-585.00900691,0.00038135,2]
[314357417,1708224670483,92843.17635467,0.00023,2]
[314357418,1708224816906,332.76288222,0.0002313,2]
[314357429,1708225831530,-722.96255476,0.0002425,2]
[314357430,1708225831539,-244.0254769,0.0002425,2]
[314357431,1708225831548,-189.66275925,0.000247,2]
[314357432,1708225831558,-161.75480485,0.0002499,2]
[314357433,1708225831567,-479.3226168,0.00025,2]
[314357434,1708225831576,-939.19740227,0.00025,2]
[314357435,1708225831585,-300.0,0.00025089,2]
[314357436,1708225831594,-150.0,0.00025089,2]
[314357437,1708225831603,-873.11150709,0.0002509,2]
[314357438,1708225831639,-1907.02645163,0.0002509,2]
[314357439,1708225831693,-400.08481297,0.0002509,2]
[314357440,1708225831704,-386.41817079,0.0002509,2]
[314357441,1708225831716,-437.380939,0.0002509,2]
[314357442,1708225831754,-255.97559429,0.0002509,2]
[314357443,1708225831766,-1362.10250627,0.0002509,2]
[314357444,1708225831778,-712.03679987,0.0002509,2]
[314357499,1708225837471,-1150.0,0.0002509,2]
[314357501,1708225837578,-1332.08172666,0.0002509,2]
[314357510,1708225840187,-498.85830519,0.0002509,2]
[314357511,1708225842630,-1028.45254231,0.0002509,2]
[314357512,1708225842642,-2456.32167956,0.0002509,2]
[314357513,1708225842738,-6652.48019124,0.0002509,2]
[314357514,1708225842749,-472.98728952,0.0002509,2]
[314357515,1708225842759,-1731.16321982,0.0002509,2]
[314357516,1708225842798,-2570.4807,0.0002509,2]
[314357525,1708225845538,-13778.71053968,0.0002509,2]
[314357526,1708225845548,-9580.37964639,0.000263,2]
[314357527,1708225845557,-2228.24277017,0.000264,2]
[314357528,1708225845567,-348.16,0.000264,2]
[314357529,1708225845577,-420.0,0.00027177,2]
[314357530,1708225845586,-7729.07614394,0.000272,2]
[314357531,1708225845597,-11597.75410197,0.000272,2]
[314357532,1708225845608,-1867.62803367,0.000272,2]
[314357533,1708225845630,-5865.68702838,0.000272,2]
[314357534,1708225845640,-4738.18306083,0.000275,2]
[314357535,1708225845649,-210.0,0.00027598,2]
[314357536,1708225845658,-360.92806983,0.00027874,2]
[314357537,1708225845667,-155.0,0.00029438,2]
[314357538,1708225845676,-587.0,0.00029439,2]
[314357539,1708225845685,-437.98946836,0.000295,3]
[314357540,1708225845694,-627.04677195,0.000301,2]
[314357541,1708225845703,-155.0,0.00031889,4]
[314357542,1708225845713,-493.0,0.0003189,3]
[314357543,1708225845722,-330.87,0.0003259,2]
[314357544,1708225845731,-308.61,0.00033631,2]
[314357545,1708225845740,-250.0,0.00033864,2]
[314357546,1708225845749,-159.12,0.00034246,2]
[314357547,1708225845759,-175.89,0.00034246,2]
[314357548,1708225845768,-162.39,0.00034521,2]
[314357549,1708225845777,-330.87,0.00034854,2]
[314357550,1708225845786,-788.99439001,0.00035,7]
[314357551,1708225845795,-2000.0,0.00035062,2]
[314357552,1708225845805,-308.61,0.00035275,2]
[314357553,1708225845814,-1052.57,0.00035668,2]
[314357554,1708225845823,-151.27,0.00035825,2]
[314357555,1708225845833,-1000.0,0.00035959,2]
[314357556,1708225845842,-2000.0,0.000362,2]
[314357557,1708225845851,-308.61,0.00036919,2]
[314357558,1708225845860,-174.85,0.00036936,2]
[314357559,1708225845869,-412.14,0.00036986,2]
[314357560,1708225845879,-412.14,0.00036986,2]
[314357561,1708225845888,-412.14,0.00036986,2]
[314357562,1708225845897,-412.14,0.00036986,2]
[314357563,1708225845906,-330.87,0.00037118,2]
[314357564,1708225845915,-166.29239554,0.0003729,2]
[314357565,1708225845925,-166.29239554,0.0003729,2]
[314357566,1708225846107,-13653.0,0.000373,2]
[314357567,1708225846117,-159.12,0.00037671,2]
[314357568,1708225846126,-166.29239554,0.00037771,2]
[314357569,1708225846135,-166.29239554,0.00037771,2]
[314357570,1708225846145,-166.29239554,0.00037771,2]
[314357571,1708225846154,-166.29239554,0.00037771,2]
[314357572,1708225846163,-166.29239554,0.00037771,2]
[314357573,1708225846172,-166.29239554,0.00037771,2]
[314357574,1708225846182,-18656.87327575,0.00037781,3]
[314357575,1708225846191,-419.19,0.00037808,2]
[314357576,1708225846200,-180.0,0.00037838,2]
[314357577,1708225846209,-171.92801911,0.0003785,2]
[314357578,1708225846218,-171.0,0.00038,2]
[314357579,1708225846227,-166.29239554,0.0003804,2]
[314357580,1708225846237,-685.39135075,0.0003805,2]
[314357581,1708225846249,-229.5475931,0.0003805,2]
[314357582,1708225846258,-166.29239554,0.00038125,2]
[314357583,1708225846267,-166.29239554,0.00038125,2]
[314357584,1708225846276,-166.29239554,0.00038131,2]
[314357585,1708225846286,-166.29239554,0.00038131,2]
[314357586,1708225846296,-150.0,0.00038135,2]
[314357587,1708225846305,-150.0,0.00038135,2]
[314357588,1708225846314,-150.0,0.00038135,2]
[314357589,1708225846323,-3000.0,0.00038135,2]
[314357590,1708225846332,-4000.0,0.00038135,2]
[314357591,1708225846341,-166.29239554,0.0003814,2]
[314357592,1708225846350,-166.29239554,0.0003814,2]
[314357593,1708225846360,-166.29239554,0.0003814,2]
[314357594,1708225846369,-166.29239554,0.0003814,2]
[314357595,1708225846377,-166.29239554,0.0003814,2]
[314357596,1708225846387,-2691.0,0.0003815,2]
[314357597,1708225846396,-1866.0,0.0003815,2]
[314357598,1708225846405,-526.28443114,0.0003815,2]
[314357599,1708225846458,-166.29239554,0.0003814,2]
[314357600,1708225846468,-266.72760446,0.0003815,2]
[314357601,1708225846495,-166.29239554,0.0003814,2]
[314357602,1708225846505,-576.9879644,0.0003815,2]
[314357603,1708225846514,-842.0,0.0003815,2]
[314357604,1708225846523,-953.0,0.0003815,2]
[314357605,1708225846532,-547.5614818,0.0003815,2]
[314357606,1708226040405,155.0,0.00024794,120]
[314357607,1708226253919,209.34349649,0.00024792,7]
[314357611,1708227031874,-376.23053512,0.00024769,2]
[314357612,1708227031883,-421.9787035,0.0002477,2]
[314357613,1708227031893,-155.0,0.00024792,2]
[314357614,1708227031902,-772.31227288,0.00024792,2]
[314357615,1708227031911,-211.91085736,0.00024794,2]
[314357616,1708227031919,-939.19740227,0.00025,2]
[314357617,1708227031928,-482.1744644,0.000288,4]
[314357618,1708227031937,-155.0,0.00032997,4]
[314357619,1708227031946,-588.46953522,0.00032998,7]
[314357620,1708227031955,-152.0,0.000336,3]
[314357621,1708227031964,-302.37,0.0003488,2]
[314357622,1708227031974,-161.75480484,0.000349,2]
[314357623,1708227031983,-401.95615608,0.00035,7]
[314357624,1708227031995,-541.12228491,0.00035,7]
[314357625,1708227032005,-499.99,0.00035,2]
[314357626,1708227032014,-152.0,0.000352,4]
[314357627,1708227032023,-3448.48792573,0.00036483,2]
[314357628,1708227032034,-423.5630361,0.00036483,2]
[314357632,1708227032062,-322.27579385,0.00036483,2]
[314357634,1708227037693,-1792.04521374,0.00036483,2]
[314357635,1708227037704,-1455.00668101,0.00036483,2]
[314357636,1708227037751,-3786.29157452,0.00036483,2]
[314357637,1708227037864,-941.43031319,0.00036483,2]
[314357638,1708227037919,-1204.76842341,0.00036483,2]
[314357639,1708227037931,-1369.29431586,0.00036483,2]
[314357640,1708227037943,-257.4999994,0.00036483,2]
[314357641,1708227037954,-817.41672319,0.00036483,2]
[314357642,1708227037963,-828.58285268,0.00036522,2]
[314357643,1708227037975,-613.85714732,0.00036522,2]
[314357644,1708227037984,-144.50992587,0.00036524,2]
[314357645,1708227037995,-580.3333379,0.00036524,2]
[314357646,1708227038014,-275.15673623,0.00036524,2]
[314357647,1708227038023,-188.49,0.00036735,2]
[314357648,1708227038032,-2000.0,0.00036794,2]
[314357649,1708227038042,-152.0,0.000368,5]
[314357650,1708227038050,-175.33371579,0.00036803,2]
[314357651,1708227038063,-74.66628421,0.00036803,2]
[314357652,1708227038072,-150.0,0.00036821,2]
[314357653,1708227038081,-192.45,0.00036834,2]
[314357655,1708227038091,-250.0,0.00036841,111]
[314357657,1708227038100,-250.0,0.00036868,2]
[314357659,1708227038109,-302.37,0.00037143,2]
[314357661,1708227038118,-157.41,0.00037183,2]
[314357662,1708227038127,-127.11171579,0.000373,2]
[314357665,1708227038140,-1551.88828421,0.000373,2]
[314357667,1708227038149,-166.021811,0.00037498,39]
[314357669,1708227038158,-155.89466373,0.00037768,2]
[314357670,1708227038167,-166.45,0.00037826,2]
[314357671,1708227038175,-354.54,0.0003788,2]
[314357672,1708227038184,-766.8642,0.0003805,2]
[314357673,1708227038193,-206.59283379,0.00038065,2]
[314357674,1708227038202,-616.85221563,0.00038065,2]
[314357675,1708227038210,-813.3884,0.00038065,2]
[314357676,1708227038219,-150.0,0.000381,7]
[314357677,1708227038229,-200.0,0.000381,2]
[314357678,1708227038237,-150.01,0.00038149,2]
[314357679,1708227038246,-3318.4901846,0.00038149,2]
[314357680,1708227038255,-3000.0,0.0003815,2]
[314357681,1708227038265,-1028.56746237,0.0003815,2]
[314357683,1708227038274,-388.52787139,0.00038155,2]
[314357685,1708227038283,-388.52787139,0.00038155,2]
[314357687,1708227038292,-388.52787139,0.00038155,2]
[314357689,1708227038301,-388.52787139,0.00038155,2]
[314357691,1708227038310,-388.52787139,0.00038155,2]
[314357693,1708227038319,-388.52787139,0.00038155,2]
[314357695,1708227038328,-388.52787139,0.00038155,2]
[314357697,1708227038338,-388.52787139,0.00038155,2]
[314357699,1708227038347,-1231.0,0.00038165,2]
[314357701,1708227038357,-1950.0,0.00038165,2]
[314357703,1708227038366,-216.0,0.00038165,2]
[314357705,1708227038375,-1255.0,0.00038165,2]
[314357707,1708227038384,-276.0,0.00038165,2]
[314357709,1708227038393,-429.0,0.00038165,2]
[314357711,1708227038402,-1005.0,0.00038165,2]
[314357713,1708227038411,-858.0,0.00038165,2]
[314357715,1708227038421,-1138.0,0.00038165,2]
[314357717,1708227038430,-321.0,0.00038165,2]
[314357719,1708227038439,-1931.33281599,0.00038165,2]
[314357722,1708227038459,-940.66718401,0.00038165,2]
[314357724,1708227038468,-150.0,0.00038165,2]
[314357726,1708227038478,-343.0,0.00038165,2]
[314357728,1708227038487,-389.0,0.00038165,2]
[314357730,1708227038496,-454.0,0.00038165,2]
[314357732,1708227038505,-2578.44877367,0.00038165,2]
[314358008,1708227041104,-17280.55122633,0.00038165,2]
[314358010,1708227041114,-2669.95355918,0.00038165,2]
[314358012,1708227041126,-259.04644082,0.00038165,2]
[314358014,1708227041135,-621.50042825,0.00038165,2]
[314358018,1708227041159,-6431.20073029,0.00038165,2]
[314358025,1708227041220,-3668.58569899,0.00038165,2]
[314358027,1708227041232,-4585.5789353,0.00038165,2]
[314358030,1708227041243,-1203.8590152,0.00038165,2]
[314358032,1708227041255,-4978.16417335,0.00038165,2]
[314358034,1708227041266,-727.84599298,0.00038165,2]
[314358037,1708227041285,-674.07,0.00038165,2]
[314358044,1708227041339,-1027.4948,0.00038165,2]
[314358046,1708227041350,-865.90791992,0.00038165,2]
[314358048,1708227041362,-5126.8903347,0.00038165,2]
[314358051,1708227041373,-3038.17531854,0.00038165,2]
[314358221,1708227043019,-150.01,0.00038149,2]
[314358223,1708227043028,-693.30634258,0.00038165,2]
[314358225,1708227043040,-401.21064498,0.00038165,2]
[314358235,1708227043464,-5158.02655053,0.00038165,2]
[314358236,1708227043476,-3117.86372466,0.00038165,2]
[314358266,1708228231880,-530.38881895,0.0003484,2]
[314358267,1708228231937,-400.0,0.0003484,2]
[314358268,1708228231997,-331.48868889,0.0003484,2]
[314358269,1708228232189,-505.49208173,0.00034841,4]
[314358270,1708228232200,-588.46953522,0.00034842,7]
[314358271,1708228232209,-155.0,0.00034963,4]
[314358272,1708228232219,-566.95795096,0.00034968,4]
[314358273,1708228232228,-272.13,0.00035045,2]
[314358274,1708228232237,-290.62920594,0.000365,2]
[314358275,1708228232246,-250.0,0.00036684,2]
[314358276,1708228232256,-800.0,0.000367,2]
[314358277,1708228232265,-160.37,0.00036709,2]
[314358278,1708228232274,-1202.03,0.00036794,2]
[314358280,1708228232283,-188.49,0.00036834,2]
[314358281,1708228232293,-312.44640567,0.00037,4]
[314358282,1708228232302,-2000.0,0.0003709,2]
[314358283,1708228232312,-272.13,0.00037309,2]
[314358284,1708228232321,-200.0,0.0003746,2]
[314358285,1708228232331,-400.0,0.00037499,3]
[314358286,1708228232340,-400.0,0.000375,3]
[314358287,1708228232350,-723.07820129,0.000375,2]
[314358288,1708228232359,-12287.0,0.000376,2]
[314358289,1708228232367,-166.65,0.00037766,2]
[314358291,1708228232377,-155.89466373,0.00037783,2]
[314358293,1708228232386,-723.07820129,0.000378,2]
[314358294,1708228232395,-200.0,0.00037859,3]
[314358295,1708228232405,-800.0,0.00037859,3]
[314358296,1708228232414,-200.0,0.0003786,3]
[314358297,1708228232423,-800.0,0.0003786,3]
[314358298,1708228232432,-200.0,0.0003786,10]
[314358299,1708228232441,-14816.59037448,0.000379,3]
[314358300,1708228232454,-430.67499105,0.000379,3]
[314358301,1708228232466,-1228.73749621,0.000379,3]
[314358302,1708228232514,-207.90687861,0.000379,3]
[314358303,1708228232523,-211.0,0.00037967,2]
[314358304,1708228232533,-150.46554637,0.00038,4]
[314358305,1708228232543,-400.0,0.00038,4]
[314358306,1708228232553,-3658.763,0.00038,2]
[314358307,1708228232562,-555.16699413,0.00038,2]
[314358308,1708228232571,-185.93355042,0.00038,2]
[314358309,1708228232581,-233.11672283,0.0003809,2]
[314358310,1708228232590,-233.11672283,0.0003809,2]
[314358311,1708228232599,-233.11672283,0.0003809,2]
[314358312,1708228232609,-233.11672283,0.0003809,2]
[314358313,1708228232619,-233.11672283,0.0003809,2]
[314358314,1708228232628,-233.11672283,0.0003809,2]
[314358315,1708228232638,-233.11672283,0.0003809,2]
[314358316,1708228232647,-233.11672283,0.0003809,2]
[314358317,1708228232658,-233.11672283,0.0003809,2]
[314358318,1708228232667,-233.11672283,0.0003809,2]
[314358319,1708228232677,-233.11672283,0.0003809,2]
[314358320,1708228232687,-233.11672283,0.0003809,2]
[314358321,1708228232696,-233.11672283,0.0003809,2]
[314358322,1708228232705,-233.11672283,0.0003809,2]
[314358323,1708228232714,-233.11672283,0.0003809,2]
[314358324,1708228232723,-233.11672283,0.0003809,2]
[314358325,1708228232733,-233.11672283,0.0003809,2]
[314358326,1708228232742,-233.11672283,0.0003809,2]
[314358327,1708228232752,-233.11672283,0.0003809,2]
[314358328,1708228232762,-233.11672283,0.0003809,2]
[314358329,1708228232772,-175.26226054,0.00038099,4]
[314358330,1708228232783,-675.17788681,0.00038099,2]
[314358331,1708228232796,-278.36627339,0.00038099,2]
[314358332,1708228232805,-1607.98254303,0.000381,3]
[314358651,1708228241430,-155.89466373,0.00037783,2]
[314358653,1708228241440,-308.32655701,0.000381,3]
[314358655,1708228241451,-572.65369902,0.000381,3]
[314358665,1708228241533,-300.25019249,0.000381,3]
[314358672,1708228241594,-741.1837024,0.000381,3]
[314358674,1708228241606,-1286.3625174,0.000381,3]
[314359113,1708228246050,-70376.71534909,0.000381,3]
[314359120,1708228246113,-14352.56800499,0.000381,3]
[314359123,1708228246125,-780.6635827,0.000381,3]
[314360310,1708228953602,155.0,0.00024794,120]
[314360319,1708229432150,-939.19740227,0.00025084,2]
[314360321,1708229432161,-155.0,0.00025085,2]
[314360323,1708229432170,-4236.71079723,0.0002509,2]
[314360324,1708229432179,-5234.5197464,0.000272,2]
[314360325,1708229432188,-437.98946836,0.000295,3]
[314360326,1708229432197,-6547.34678522,0.00032999,4]
[314360327,1708229432206,-1269.08202052,0.00033,2]
[314360328,1708229432216,-279.14,0.00034539,2]
[314360329,1708229432225,-208.0,0.00034967,2]
[314360330,1708229432234,-438.16,0.00036328,2]
[314360331,1708229432243,-188.49,0.00036357,2]
[314360332,1708229432253,-250.0,0.00036365,2]
[314360333,1708229432262,-11632.64,0.000364,2]
[314360334,1708229432271,-2000.0,0.00036404,2]
[314360335,1708229432282,-2000.0,0.00036404,2]
[314360336,1708229432292,-195.85,0.00036414,2]
[314360337,1708229432301,-499.99,0.00036414,2]
[314360338,1708229432310,-640.0,0.00036458,2]
[314360339,1708229432320,-250.0,0.00036476,2]
[314360340,1708229432332,-7016.13,0.00036491,2]
[314360341,1708229432342,-1001.69,0.00036539,2]
[314360342,1708229432351,-165.62,0.00036565,2]
[314360343,1708229432361,-164.51,0.00036728,2]
[314360344,1708229432371,-279.14,0.00036803,2]
[314360345,1708229432380,-360.0,0.00036961,2]
[314360346,1708229432389,-299.99,0.00036967,30]
[314360347,1708229432398,-1030.0,0.00037,2]
[314360348,1708229432409,-312.44640567,0.00037699,4]
[314360349,1708229432418,-1709.0,0.000377,2]
[314360350,1708229432427,-14162.0,0.000377,2]
[314360351,1708229432437,-155.89466373,0.00037783,2]
[314360353,1708229432446,-165.62,0.00037784,2]
[314360355,1708229432455,-400.0,0.000379,4]
[314360357,1708229432464,-150.0,0.00037982,2]
[314360359,1708229432474,-3000.0,0.00038,38]
[314360361,1708229432483,-1849.0,0.00038,2]
[314360363,1708229432492,-1246.31981,0.00038,2]
[314360364,1708229432501,-361.58810806,0.00038,2]
[314360365,1708229432510,-12070.20813153,0.00038,2]
[314360366,1708229432519,-195.85,0.00038058,2]
[314360367,1708229432528,-500.0,0.00038064,2]
[314360368,1708229432537,-160.97166431,0.00038098,4]
[314360369,1708229432546,-3000.0,0.00038099,2]
[314360370,1708229432555,-109673.29385187,0.000381,3]
[314360371,1708229432565,-1154.98146506,0.000381,4]
[314360372,1708229432575,-200.0,0.000381,2]
[314360373,1708229432584,-294.61880593,0.00038164,2]
[314360374,1708229432593,-3318.4901846,0.00038164,2]
[314360375,1708229432603,-772.30387288,0.00038165,2]
[314360376,1708229432613,-772.30387288,0.00038165,2]
[314360377,1708229432622,-150.0,0.00038186,2]
[314360378,1708229432631,-150.0,0.00038186,2]
[314360379,1708229432641,-150.679,0.00038186,2]
[314360380,1708229432651,-1462.163,0.00038186,2]
[314360381,1708229432660,-2691.0,0.00038186,2]
[314360382,1708229432669,-1866.0,0.00038186,2]
[314360383,1708229432678,-709.0,0.00038186,2]
[314360384,1708229432687,-842.0,0.00038186,2]
[314360385,1708229432696,-953.0,0.00038186,2]
[314360386,1708229432706,-1255.0,0.00038186,2]
[314360387,1708229432715,-217.4,0.00038186,2]
[314360388,1708229432724,-1950.0,0.00038186,2]
[314360389,1708229432734,-1231.0,0.00038186,2]
[314360390,1708229432743,-431.769,0.00038186,2]
[314360391,1708229432752,-276.0,0.00038186,2]
[314360392,1708229432761,-1009.876,0.00038186,2]
[314360393,1708229432770,-858.0,0.00038186,2]
[314360394,1708229432779,-323.06,0.00038186,2]
[314360395,1708229432789,-2872.0,0.00038186,2]
[314360396,1708229432799,-1138.0,0.00038186,2]
[314360397,1708229432808,-343.0,0.00038186,2]
[314360398,1708229432817,-150.843,0.00038186,2]
[314360399,1708229432827,-389.0,0.00038186,2]
[314360400,1708229432836,-454.0,0.00038186,2]
[314360401,1708229432846,-8169.0,0.00038186,2]
[314360402,1708229432855,-7422.0,0.00038186,2]
[314360403,1708229432863,-4100.0,0.00038186,2]
[314360404,1708229432872,-5633.0,0.00038186,2]
[314360405,1708229432881,-2929.0,0.00038186,2]
[314360406,1708229432890,-775.171,0.00038186,2]
[314360407,1708229432899,-2291.0,0.00038186,2]
[314360408,1708229432908,-19859.0,0.00038186,2]
[314360409,1708229432917,-1038.0,0.00038186,2]
[314360410,1708229432926,-361.588108,0.00038211,2]
[314360411,1708229432935,-12070.20813149,0.00038211,2]
[314360412,1708229432944,-153.73,0.00038356,2]
[314360413,1708229432953,-356.66,0.00038356,15]
[314360414,1708229432962,-152.0,0.000384,6]
[314360415,1708229432972,-361.588108,0.00038422,2]
[314360416,1708229432981,-12070.20813149,0.00038422,2]
[314360417,1708229432990,-151.0,0.00038606,7]
[314360418,1708229432999,-361.588108,0.00038633,2]
[314360419,1708229433008,-12070.20813149,0.00038633,2]
[314360420,1708229433017,-1000.0,0.00038649,2]
[314360421,1708229433025,-171.56126529,0.00038676,9]
[314360422,1708229433034,-5000.0,0.00038687,3]
[314360423,1708229433043,-12305.7585,0.00038687,2]
[314360424,1708229433052,-972.24997962,0.00038687,2]
[314360425,1708229433061,-250.0,0.00038776,2]
[314360426,1708229433070,-500.0,0.00038776,2]
[314360427,1708229433080,-500.0,0.00038776,2]
[314360428,1708229433088,-500.0,0.00038776,2]
[314360429,1708229433097,-500.0,0.00038776,2]
[314360430,1708229433106,-500.0,0.00038776,2]
[314360431,1708229433115,-500.0,0.00038776,2]
[314360432,1708229433124,-500.0,0.00038776,2]
[314360433,1708229433133,-500.0,0.00038776,2]
[314360434,1708229433142,-500.0,0.00038776,2]
[314360435,1708229433151,-500.0,0.00038776,2]
[314360436,1708229433160,-500.0,0.00038776,2]
[314360437,1708229433169,-300.0,0.00038776,2]
[314360438,1708229433179,-500.0,0.00038776,2]
[314360439,1708229433188,-500.0,0.00038776,2]
[314360440,1708229433197,-500.0,0.00038776,2]
[314360441,1708229433206,-500.0,0.00038776,2]
[314360442,1708229433214,-500.0,0.00038776,2]
[314360443,1708229433223,-500.0,0.00038776,2]
[314360444,1708229433232,-500.0,0.00038776,2]
[314360445,1708229433241,-500.0,0.00038776,2]
[314360446,1708229433250,-500.0,0.00038776,2]
[314360447,1708229433259,-500.0,0.00038776,2]
[314360448,1708229433268,-500.0,0.00038776,2]
[314360449,1708229433278,-500.0,0.00038776,2]
[314360450,1708229433289,-500.0,0.00038776,2]
[314360451,1708229433298,-500.0,0.00038776,2]
[314360452,1708229433307,-500.0,0.00038776,2]
[314360453,1708229433316,-500.0,0.00038776,2]
[314360454,1708229433326,-500.0,0.00038776,2]
[314360455,1708229433336,-500.0,0.00038776,2]
[314360456,1708229433345,-500.0,0.00038776,2]
[314360457,1708229433355,-500.0,0.00038776,2]
[314360458,1708229433364,-500.0,0.00038776,2]
[314360459,1708229433374,-500.0,0.00038776,2]
[314360460,1708229433384,-500.0,0.00038776,2]
[314360461,1708229433393,-500.0,0.00038776,2]
[314360462,1708229433402,-500.0,0.00038776,2]
[314360463,1708229433411,-500.0,0.00038776,2]
[314360464,1708229433420,-500.0,0.00038776,2]
[314360465,1708229433429,-500.0,0.00038776,2]
[314360466,1708229433438,-500.0,0.00038776,2]
[314360467,1708229433447,-500.0,0.00038776,2]
[314360468,1708229433456,-500.0,0.00038776,2]
[314360469,1708229433465,-500.0,0.00038776,2]
[314360470,1708229433474,-500.0,0.00038776,2]
[314360471,1708229433483,-500.0,0.00038776,2]
[314360472,1708229433492,-500.0,0.00038776,2]
[314360473,1708229433501,-500.0,0.00038776,2]
[314360474,1708229433511,-500.0,0.00038776,2]
[314360475,1708229433521,-500.0,0.00038776,2]
[314360476,1708229433529,-500.0,0.00038776,2]
[314360477,1708229433538,-500.0,0.00038776,2]
[314360478,1708229433547,-500.0,0.00038776,2]
[314360479,1708229433557,-500.0,0.00038776,2]
[314360480,1708229433566,-500.0,0.00038776,2]
[314360481,1708229433575,-500.0,0.00038776,2]
[314360482,1708229433584,-500.0,0.00038776,2]
[314360483,1708229433593,-500.0,0.00038776,2]
[314360484,1708229433602,-500.0,0.00038776,2]
[314360485,1708229433611,-500.0,0.00038776,2]
[314360486,1708229433620,-500.0,0.00038776,2]
[314360487,1708229433629,-500.0,0.00038776,2]
[314360488,1708229433639,-500.0,0.00038776,2]
[314360489,1708229433648,-500.0,0.00038776,2]
[314360490,1708229433657,-500.0,0.00038776,2]
[314360491,1708229433666,-500.0,0.00038776,2]